bitfinex/quotes_SOLUSD_20220105
["timestamp","ask_amount","ask_price","bid_price","bid_amount"]
[1641359914183,24.5309,168.37,168.31,0.06]
[1641359914383,78.6845,168.39,168.33,0.06]
[1641359914583,1.306,168.4,168.34,8.56]
[1641359914783,127.7016,168.45,168.34,8.56]
[1641359914983,127.7016,168.45,168.34,9.32]
[1641359915184,2.29253282,168.44,168.35,27.81022455]
[1641359915385,2.29253282,168.44,168.36,8.56]
[1641359915584,3.53743282,168.44,168.36,8.82]
[1641359915786,3.53743282,168.44,168.36,9.32]
[1641359922897,1.2449,168.44,168.36,9.32]
[1641359923097,1.2449,168.44,168.36,16.774]
[1641359923297,103.0848,168.45,168.36,16.774]
[1641359923923,103.0848,168.45,168.36,18.0288]
[1641359924122,1.2504,168.48,168.36,18.0288]
[1641359924323,1.2504,168.48,168.36,10.6348]
[1641359924523,1.2504,168.48,168.36,136.14125511]
[1641359924924,24.9679,168.48,168.37,24.2822]
[1641359925123,24.9679,168.48,168.38,8.56]
[1641359925523,24.9679,168.48,168.38,9.32]
[1641359926124,24.9679,168.48,168.39,1.363]
[1641359926326,24.9679,168.48,168.4,8.56]
[1641359926524,24.9679,168.48,168.4,8.82]
[1641359926725,24.9679,168.48,168.4,9.32]
[1641359929331,24.9679,168.48,168.4,8.56]
[1641359929531,25.4679,168.48,168.4,8.56]
[1641359930230,25.4679,168.48,168.37,8.56]
[1641359930828,25.4679,168.48,168.37,8.82]
[1641359931840,25.4679,168.48,168.37,8.56]
[1641359932338,25.4679,168.48,168.37,9.06]
[1641359933141,25.4679,168.48,168.37,9.32]
[1641359935342,25.4679,168.48,168.37,8.82]
[1641359935541,27.02177193,168.48,168.37,8.82]
[1641359936146,25.4679,168.48,168.37,8.82]
[1641359937244,27.02177193,168.48,168.37,8.82]
[1641359937945,26.52177193,168.48,168.37,9.32]
[1641359938749,24.9679,168.48,168.37,9.32]
[1641359940951,25.4679,168.48,168.37,8.82]
[1641359941253,24.9679,168.48,168.37,8.82]
[1641359941454,24.9679,168.48,168.37,9.32]
[1641359941854,25.4679,168.48,168.37,9.32]
[1641359943887,25.4679,168.48,168.37,8.82]
[1641359944285,25.4679,168.48,168.37,9.32]
[1641359944682,24.9679,168.48,168.37,9.32]
[1641359958797,24.9679,168.48,168.37,8.82]
[1641359960099,24.9679,168.48,168.37,9.32]
[1641359962000,25.4679,168.48,168.37,9.32]
[1641359962403,25.4679,168.48,168.38,1.2575]
[1641359962601,25.4679,168.48,168.38,1.5175]
[1641359962801,25.4679,168.48,168.38,2.0175]
[1641359963202,24.9679,168.48,168.38,2.0175]
[1641359970339,24.9679,168.48,168.39,8.56]
[1641359970535,24.9679,168.48,168.39,8.82]
[1641359970735,24.9679,168.48,168.39,9.32]
[1641359971336,24.9679,168.48,168.4,1.2963]
[1641359971538,24.9679,168.48,168.4,10.1163]
[1641359971837,24.9679,168.48,168.4,10.6163]
[1641359977750,6.20139239,168.4,168.33,154.7506]
[1641359977955,6.20139239,168.4,168.34,8.56]
[1641359979152,6.20139239,168.4,168.3,31.5287]
[1641359979451,6.20139239,168.4,168.3,32.0287]
[1641359979851,2.90416325,168.38,168.3,32.2887]
[1641359980052,2.90416325,168.38,168.3,31.7887]
[1641359981452,2.90416325,168.38,168.3,32.2887]
[1641359985362,55.76512484,168.39,168.3,32.2887]
[1641359986464,58.59512954,168.39,168.3,32.2887]
[1641359993392,58.59512954,168.39,168.3,33.76716154]
[1641359995297,57.33082954,168.39,168.3,33.76716154]
[1641359995797,34.11072954,168.39,168.3,33.76716154]
[1641359996797,34.11072954,168.39,168.3,33.50716154]
[1641359998102,34.11072954,168.39,168.3,33.76716154]
[1641359998501,57.69352954,168.39,168.3,33.76716154]
[1641359999400,58.93992954,168.39,168.3,33.76716154]
[1641360002604,35.35712954,168.39,168.3,33.76716154]
[1641360005309,31.28072484,168.39,168.3,38.68616154]
[1641360005510,31.28072484,168.39,168.3,48.31031665]
[1641360005809,6.20139239,168.4,168.3,48.37031665]
[1641360006238,6.20139239,168.4,168.31,106.98]
[1641360006438,6.20139239,168.4,168.32,8.62]
[1641360006640,6.20139239,168.4,168.33,30.20756331]
[1641360006842,6.20139239,168.4,168.34,8.56]
[1641360007037,6.20139239,168.4,168.34,8.82]
[1641360007238,6.20139239,168.4,168.34,20.42261665]
[1641360007443,6.20139239,168.4,168.35,1.47846154]
[1641360007639,6.20139239,168.4,168.36,8.56]
[1641360007841,6.20139239,168.4,168.36,9.06]
[1641360008039,6.20139239,168.4,168.36,9.32]
[1641360015049,6.20139239,168.4,168.36,9.38]
[1641360015248,6.20139239,168.4,168.36,10.85846154]
[1641360020452,6.20139239,168.4,168.36,10.59846154]
[1641360020753,6.20139239,168.4,168.36,9.12]
[1641360022054,6.20139239,168.4,168.36,9.38]
[1641360022551,6.20139239,168.4,168.36,8.88]
[1641360035478,6.20139239,168.4,168.33,1.47846154]
[1641360035682,6.20139239,168.4,168.25,56.59880902]
[1641360035683,6.20139239,168.4,168.34,8.56]
[1641360035877,6.20139239,168.4,168.31,8.56]
[1641360036078,2.78746885,168.38,168.31,8.56]
[1641360037279,2.78746885,168.38,168.31,9.32]
[1641360037879,2.78746885,168.38,168.31,9.06]
[1641360038380,25.1574,168.39,168.31,18.68415511]
[1641360038579,6.20139239,168.4,168.31,20.16261665]
[1641360038980,6.20139239,168.4,168.31,20.42261665]
[1641360043903,6.20139239,168.4,168.31,20.16261665]
[1641360045306,6.20139239,168.4,168.31,20.42261665]
[1641360045505,6.20139239,168.4,168.31,127.40261665]
[1641360047407,9.2058402,168.4,168.31,127.40261665]
[1641360047608,9.2058402,168.4,168.31,116.04]
[1641360048408,1.2517,168.39,168.31,116.04]
[1641360049010,1.2517,168.39,168.31,116.3]
[1641360050416,1.2517,168.39,168.31,116.04]
[1641360050614,1.2517,168.39,168.31,9.06]
[1641360050911,1.2517,168.39,168.31,8.56]
[1641360051315,1.2517,168.39,168.31,9.06]
[1641360051913,1.2517,168.39,168.31,9.32]
[1641360054014,1.2517,168.39,168.31,10.79846154]
[1641360054215,1.2517,168.39,168.31,20.42261665]
[1641360054816,6.20139239,168.4,168.31,20.42261665]
[1641360057918,6.20139239,168.4,168.31,20.16261665]
[1641360058120,1.2748,168.39,168.31,20.16261665]
[1641360059319,1.2748,168.39,168.31,20.42261665]
[1641360060220,6.20139239,168.4,168.31,20.42261665]
[1641360068437,1.2741,168.39,168.31,20.42261665]
[1641360069333,28.5211648,168.39,168.31,20.42261665]
[1641360069532,28.5211648,168.39,168.31,20.16261665]
[1641360069734,28.5211648,168.39,168.31,18.68415511]
[1641360070138,52.4995648,168.39,168.31,20.16261665]
[1641360070936,49.83454691,168.39,168.31,20.42261665]
[1641360073765,25.2525,168.39,168.31,20.42261665]
[1641360082380,25.2525,168.39,168.31,19.42261665]
[1641360084579,2.86937402,168.38,168.31,19.42261665]
[1641360086082,25.2525,168.39,168.31,19.42261665]
[1641360087382,28.08573425,168.39,168.31,19.42261665]
[1641360089684,28.08573425,168.39,168.31,126.40261665]
[1641360089886,25.2525,168.39,168.31,126.40261665]
[1641360100831,25.2525,168.39,168.31,116.77846154]
[1641360101234,1.2741,168.39,168.31,116.77846154]
[1641360102032,6.20139239,168.4,168.31,122.81346154]
[1641360102232,6.20139239,168.4,168.31,15.83346154]
[1641360102434,6.20139239,168.4,168.35,106.98]
[1641360102633,6.20139239,168.4,168.36,8.56]
[1641360102833,6.20139239,168.4,168.36,10.03846154]
[1641360103034,6.20139239,168.4,168.36,10.79846154]
[1641360103634,6.20139239,168.4,168.36,38.78260616]
[1641360107541,6.20139239,168.4,168.36,10.79846154]
[1641360108941,6.20139239,168.4,168.37,1.47846154]
[1641360109141,6.20139239,168.4,168.38,8.59197093]
[1641360109342,6.20139239,168.4,168.38,9.09197093]
[1641360109543,6.20139239,168.4,168.38,9.35197093]
[1641360116584,6.03045822,168.39,168.38,9.32]
[1641360116784,6.20139239,168.4,168.38,9.32]
[1641360118784,6.20139239,168.4,168.38,9.06]
[1641360119985,6.20139239,168.4,168.38,9.32]
[1641360120186,6.20139239,168.4,168.39,0.03197093]
[1641360121986,11.78783373,168.4,168.38,9.32]
[1641360122390,50.00022904,168.39,168.38,9.32]
[1641360122588,3.00022904,168.39,168.38,9.32]
[1641360122789,8.75760455,168.4,168.38,9.35197093]
[1641360122989,6.20139239,168.4,168.38,9.35197093]
[1641360124191,6.20139239,168.4,168.38,10.83043247]
[1641360126997,6.20139239,168.4,168.39,26.65562507]
[1641360127199,6.20139239,168.4,168.39,35.21562507]
[1641360127398,6.20139239,168.4,168.39,37.45408661]
[1641360128204,6.20139239,168.4,168.39,10.79846154]
[1641360129602,6.20139239,168.4,168.39,10.53846154]
[1641360129801,6.20139239,168.4,168.39,9.06]
[1641360132130,6.20139239,168.4,168.39,9.32]
[1641360136338,6.20139239,168.4,168.39,14.48472676]
[1641360145257,6.20139239,168.4,168.39,14.22472676]
[1641360146654,6.20139239,168.4,168.39,14.48472676]
[1641360158086,12.23185061,168.4,168.39,14.48472676]
[1641360158487,6.20139239,168.4,168.39,14.48472676]
[1641360158886,6.20139239,168.4,168.39,14.51669769]
[1641360161290,6.20139239,168.4,168.39,14.25669769]
[1641360163991,6.20139239,168.4,168.39,14.51669769]
[1641360172404,12.23185061,168.4,168.39,14.48472676]
[1641360174803,6.20139239,168.4,168.39,14.48472676]
[1641360175039,6.20139239,168.4,168.39,14.51669769]
[1641360175429,12.23185061,168.4,168.39,14.48472676]
[1641360176029,9.20162143,168.4,168.39,14.48472676]
[1641360176628,6.20139239,168.4,168.39,14.51669769]
[1641360185440,9.20162143,168.4,168.39,14.22472676]
[1641360185640,12.23185061,168.4,168.39,14.22472676]
[1641360187144,12.23185061,168.4,168.39,14.48472676]
[1641360188145,12.23185061,168.4,168.39,13.72472676]
[1641360188346,2.3728532,168.38,168.34,8.56]
[1641360189348,2.3728532,168.38,168.31,8.56]
[1641360189746,2.3728532,168.38,168.31,9.06]
[1641360190146,3.7120532,168.38,168.31,9.06]
[1641360190346,17.56911565,168.37,168.31,9.06]
[1641360190551,17.56911565,168.37,168.31,9.32]
[1641360196358,1.3392,168.38,168.31,9.32]
[1641360196755,1.3392,168.38,168.31,10.79846154]
[1641360199759,1.3392,168.38,168.31,17.45846154]
[1641360200860,81.10669239,168.4,168.31,17.45846154]
[1641360201062,81.10669239,168.4,168.31,10.79846154]
[1641360201285,81.10669239,168.4,168.31,9.32]
[1641360201483,1.304,168.39,168.31,9.32]
[1641360201686,1.304,168.39,168.31,10.79846154]
[1641360201883,1.304,168.39,168.31,9.32]
[1641360202085,1.304,168.39,168.31,10.6673]
[1641360202485,1.304,168.39,168.31,12.14576154]
[1641360202687,25.3463,168.39,168.31,12.14576154]
[1641360202885,25.3463,168.39,168.31,10.6673]
[1641360203289,25.3463,168.39,168.31,12.14576154]
[1641360206498,24.0423,168.39,168.31,12.14576154]
[1641360206695,6.20139239,168.4,168.31,21.05166154]
[1641360209701,6.20139239,168.4,168.31,12.14576154]
[1641360211305,6.20139239,168.4,168.31,30.67601665]
[1641360213005,6.20139239,168.4,168.31,128.74991665]
[1641360215808,6.20139239,168.4,168.31,134.95291665]
[1641360216412,6.20139239,168.4,168.31,143.85891665]
[1641360217010,6.20139239,168.4,168.31,134.95291665]
[1641360217211,6.20139239,168.4,168.31,128.74991665]
[1641360218012,1.2599,168.39,168.31,128.74991665]
[1641360218613,6.20139239,168.4,168.31,137.65601665]
[1641360218813,6.20139239,168.4,168.31,128.74991665]
[1641360219712,6.20139239,168.4,168.32,8.9055]
[1641360219913,6.20139239,168.4,168.33,8.56]
[1641360220138,6.20139239,168.4,168.33,8.82]
[1641360220339,6.20139239,168.4,168.33,9.32]
[1641360225746,6.20139239,168.4,168.34,31.32061024]
[1641360226046,6.20139239,168.4,168.35,8.56]
[1641360226445,6.20139239,168.4,168.35,9.32]
[1641360230250,6.20139239,168.4,168.35,9.06]
[1641360231750,6.20139239,168.4,168.35,9.32]
[1641360244170,6.20139239,168.4,168.35,8.82]
[1641360245372,6.20139239,168.4,168.35,9.32]
[1641360253997,6.20139239,168.4,168.35,9.06]
[1641360255503,6.20139239,168.4,168.35,9.32]
[1641360263415,6.20139239,168.4,168.35,10.79846154]
[1641360275151,6.20139239,168.4,168.35,27.30961665]
[1641360275348,6.20139239,168.4,168.37,106.98]
[1641360275548,6.20139239,168.4,168.38,8.56]
[1641360275750,6.20139239,168.4,168.39,107.01197093]
[1641360275948,6.20139239,168.4,168.39,161.14828889]
[1641360276148,74.5394,168.48,168.4,1.47846154]
[1641360276348,74.5394,168.48,168.42,106.98]
[1641360276549,74.5394,168.48,168.43,8.56]
[1641360276749,24.90807193,168.5,168.43,8.56]
[1641360276949,23.3542,168.5,168.43,10.79846154]
[1641360277150,25.72529164,168.5,168.44,1.47846154]
[1641360277451,25.72529164,168.5,168.45,8.56]
[1641360277853,25.72529164,168.5,168.45,9.32]
[1641360281155,25.72529164,168.5,168.45,9.06]
[1641360281755,25.72529164,168.5,168.45,8.56]
[1641360281955,17.66524999,168.49,168.45,8.56]
[1641360282355,17.66524999,168.49,168.45,8.82]
[1641360283056,17.72524999,168.49,168.45,8.82]
[1641360284559,17.72524999,168.49,168.45,9.32]
[1641360289463,17.72524999,168.49,168.45,9.06]
[1641360289662,17.72524999,168.49,168.45,8.56]
[1641360290967,17.72524999,168.49,168.45,8.82]
[1641360291966,17.72524999,168.49,168.45,9.32]
[1641360292166,17.72524999,168.49,168.45,8.82]
[1641360292366,17.72524999,168.49,168.45,9.32]
[1641360292567,17.72524999,168.49,168.45,8.82]
[1641360292966,17.72524999,168.49,168.45,9.32]
[1641360295272,17.72524999,168.49,168.45,9.06]
[1641360295773,17.72524999,168.49,168.45,8.56]
[1641360296174,0.06,168.49,168.45,9.06]
[1641360296375,0.06,168.49,168.45,10.53846154]
[1641360296574,0.06,168.49,168.45,10.79846154]
[1641360297273,0.06,168.49,168.45,117.77846154]
[1641360297673,0.06,168.49,168.45,116.3]
[1641360297873,0.06,168.49,168.46,1.47846154]
[1641360298073,0.06,168.49,168.47,8.56]
[1641360298273,0.06,168.49,168.48,0.03197093]
[1641360298475,0.06,168.49,168.48,10.07043247]
[1641360298802,0.06,168.49,168.48,8.59197093]
[1641360298972,0.06,168.49,168.48,9.35197093]
[1641360301074,0.06,168.49,168.48,10.83043247]
[1641360301376,0.06,168.49,168.48,9.35197093]
[1641360302175,0.06,168.49,168.48,10.83043247]
[1641360303481,0.06,168.49,168.48,9.35197093]
[1641360305882,0.06,168.49,168.48,117.81043247]
[1641360306082,0.06,168.49,168.48,127.43458758]
[1641360307908,1.2901,168.59,168.49,38.05200331]
[1641360308109,1.2901,168.59,168.5,115.54]
[1641360308309,1.2901,168.59,168.5,116.9018]
[1641360308512,75.4573,168.6,168.5,117.6618]
[1641360309810,75.4573,168.6,168.5,126.5579]
[1641360313611,75.4573,168.6,168.5,128.03636154]
[1641360317013,75.4573,168.6,168.51,8.8954]
[1641360317214,75.4573,168.6,168.53,31.30098309]
[1641360317415,75.4573,168.6,168.54,8.56]
[1641360317618,1.2696,168.61,168.54,8.56]
[1641360317916,1.2696,168.61,168.54,9.32]
[1641360318520,25.33778654,168.63,168.54,10.79846154]
[1641360318714,22.7052,168.63,168.54,10.79846154]
[1641360318916,22.7052,168.63,168.54,117.77846154]
[1641360321120,22.7052,168.63,168.54,116.3]
[1641360321621,22.7052,168.63,168.54,117.77846154]
[1641360325020,22.7052,168.63,168.54,116.3]
[1641360325221,22.7052,168.63,168.54,117.6138]
[1641360326424,2.52515312,168.62,168.54,117.6138]
[1641360326626,2.52515312,168.62,168.54,117.3538]
[1641360327725,3.82965312,168.62,168.54,117.3538]
[1641360327927,3.82965312,168.62,168.54,117.6138]
[1641360337233,3.82965312,168.62,168.54,119.09226154]
[1641360337434,3.82965312,168.62,168.54,117.6138]
[1641360338535,3.32965312,168.62,168.54,117.6138]
[1641360338734,3.32965312,168.62,168.54,119.09226154]
[1641360338938,3.32965312,168.62,168.54,117.6138]
[1641360339137,3.32965312,168.62,168.54,119.09226154]
[1641360339536,3.32965312,168.62,168.54,117.6138]
[1641360341138,3.32965312,168.62,168.54,119.09226154]
[1641360355775,3.32965312,168.62,168.54,124.57526154]
[1641360358478,3.32965312,168.62,168.54,119.09226154]
[1641360358680,22.86388648,168.64,168.54,119.09226154]
[1641360358981,1.2821,168.66,168.55,23.3663]
[1641360359180,1.2821,168.66,168.56,8.56]
[1641360359378,1.2821,168.66,168.56,9.06]
[1641360359580,1.2821,168.66,168.56,9.32]
[1641360359878,1.2821,168.66,168.57,23.72869388]
[1641360360081,1.2821,168.66,168.58,8.56]
[1641360360281,1.2821,168.66,168.58,31.3648]
[1641360360479,1.2821,168.66,168.58,32.1248]
[1641360361080,3.57315809,168.66,168.58,32.1248]
[1641360395741,3.57315809,168.66,168.58,33.60326154]
[1641360400250,1.2821,168.66,168.58,40.48126154]
[1641360401348,3.46246185,168.66,168.58,40.48126154]
[1641360402751,3.46246185,168.66,168.58,33.60326154]
[1641360412966,1.55387193,168.73,168.58,33.60326154]
[1641360413164,1.2753,168.72,168.59,106.98]
[1641360413365,1.2753,168.72,168.6,8.56]
[1641360413567,1.2753,168.72,168.6,19.92261665]
[1641360413768,1.2753,168.72,168.61,32.72465511]
[1641360413965,3.60748589,168.72,168.63,27.93944984]
[1641360414265,3.60748589,168.72,168.64,8.56]
[1641360414466,3.60748589,168.72,168.64,10.53846154]
[1641360414665,3.60748589,168.72,168.64,10.79846154]
[1641360416889,3.60748589,168.72,168.64,9.32]
[1641360424106,3.60748589,168.72,168.64,33.0179]
[1641360426410,3.60748589,168.72,168.64,34.2617]
[1641360428814,3.60748589,168.72,168.64,34.0017]
[1641360430011,3.60748589,168.72,168.64,34.2617]
[1641360438350,3.60748589,168.72,168.64,35.74016154]
[1641360441956,3.60748589,168.72,168.64,34.23636154]
[1641360442255,3.60748589,168.72,168.64,8.56]
[1641360443356,3.60748589,168.72,168.64,9.06]
[1641360443956,4.10748589,168.72,168.64,9.06]
[1641360444256,3.60748589,168.72,168.64,9.06]
[1641360444960,4.10748589,168.72,168.64,9.32]
[1641360445159,3.60748589,168.72,168.64,9.32]
[1641360446759,4.10748589,168.72,168.64,9.32]
[1641360446962,3.60748589,168.72,168.64,9.32]
[1641360447360,4.10748589,168.72,168.64,9.32]
[1641360450263,4.10748589,168.72,168.64,9.06]
[1641360450962,3.60748589,168.72,168.64,9.06]
[1641360451168,4.10748589,168.72,168.64,9.06]
[1641360451863,4.10748589,168.72,168.64,9.32]
[1641360452066,3.60748589,168.72,168.64,9.32]
[1641360452364,4.10748589,168.72,168.64,9.32]
[1641360452963,3.60748589,168.72,168.64,9.32]
[1641360453764,4.10748589,168.72,168.64,9.32]
[1641360454264,3.60748589,168.72,168.64,9.32]
[1641360461400,4.10748589,168.72,168.64,9.32]
[1641360461801,3.60748589,168.72,168.64,9.32]
[1641360465401,3.60748589,168.72,168.64,0.5]
[1641360465600,23.3534,168.71,168.61,8.56]
[1641360465902,23.8534,168.71,168.61,9.06]
[1641360466500,23.8534,168.71,168.61,9.32]
[1641360466700,23.3534,168.71,168.61,9.32]
[1641360466900,1.3094,168.7,168.61,9.32]
[1641360467101,25.1707758,168.69,168.61,9.32]
[1641360470313,2.91436238,168.69,168.61,10.79846154]
[1641360470916,2.91436238,168.69,168.61,12.03566154]
[1641360471348,1.3094,168.7,168.61,12.03566154]
[1641360471516,1.3094,168.7,168.61,17.54666154]
[1641360472918,2.47473479,168.71,168.61,17.54666154]
[1641360473121,2.47473479,168.71,168.61,27.17081665]
[1641360473521,2.47473479,168.71,168.62,22.9614]
[1641360473721,2.47473479,168.71,168.63,8.56]
[1641360473921,2.47473479,168.71,168.64,23.01994603]
[1641360474124,2.47473479,168.71,168.65,8.56]
[1641360474324,2.47473479,168.71,168.65,13.489]
[1641360474524,2.47473479,168.71,168.65,14.249]
[1641360478129,2.47473479,168.71,168.65,13.989]
[1641360478333,25.3276,168.74,168.65,14.003]
[1641360478529,25.3276,168.74,168.66,1.47846154]
[1641360478731,25.3276,168.74,168.67,8.56]
[1641360478951,25.3276,168.74,168.67,9.06]
[1641360479554,28.32440049,168.74,168.67,9.32]
[1641360480353,28.32440049,168.74,168.67,9.06]
[1641360481959,28.32440049,168.74,168.67,9.32]
[1641360487563,28.32440049,168.74,168.67,0.76]
[1641360487963,28.32440049,168.74,168.65,25.1959]
[1641360489365,28.32440049,168.74,168.65,0.76]
[1641360489565,28.32440049,168.74,168.64,10.6438]
[1641360492469,28.32440049,168.74,168.65,23.4026]
[1641360492867,28.32440049,168.74,168.65,24.1626]
[1641360495774,28.32440049,168.74,168.65,23.9026]
[1641360496975,28.32440049,168.74,168.65,24.1626]
[1641360499179,28.82440049,168.74,168.65,24.1626]
[1641360502688,28.32440049,168.74,168.65,24.1626]
[1641360506013,28.82440049,168.74,168.65,24.1626]
[1641360510826,28.32440049,168.74,168.65,24.1626]
[1641360511226,28.82440049,168.74,168.65,24.1626]
[1641360511632,28.32440049,168.74,168.65,24.1626]
[1641360511829,28.82440049,168.74,168.65,24.1626]
[1641360512730,28.32440049,168.74,168.65,24.1626]
[1641360512930,28.82440049,168.74,168.65,24.1626]
[1641360513429,28.32440049,168.74,168.65,24.1626]
[1641360513630,28.32440049,168.74,168.64,9.8838]
[1641360514229,28.82440049,168.74,168.64,9.8838]
[1641360514833,28.82440049,168.74,168.64,8.56]
[1641360515032,28.82440049,168.74,168.64,8.82]
[1641360515231,28.82440049,168.74,168.64,9.32]
[1641360517235,28.32440049,168.74,168.64,9.32]
[1641360518438,28.82440049,168.74,168.64,9.32]
[1641360518839,28.32440049,168.74,168.64,9.32]
[1641360519342,28.82440049,168.74,168.64,9.32]
[1641360519744,28.32440049,168.74,168.64,9.32]
[1641360519943,28.82440049,168.74,168.64,9.32]
[1641360523547,28.82440049,168.74,168.64,8.82]
[1641360524970,28.82440049,168.74,168.64,9.32]
[1641360525571,28.82440049,168.74,168.64,8.82]
[1641360525772,28.82440049,168.74,168.64,9.32]
[1641360533484,4.78900049,168.74,168.64,9.32]
[1641360533684,4.28900049,168.74,168.64,9.32]
[1641360533884,2.99680049,168.74,168.64,9.32]
[1641360534084,2.99680049,168.74,168.65,26.62932729]
[1641360534283,2.99680049,168.74,168.66,8.56]
[1641360534486,2.99680049,168.74,168.66,33.103]
[1641360540896,25.7785,168.77,168.66,39.859]
[1641360541696,25.7785,168.77,168.67,1.2965]
[1641360541896,2.19903471,168.76,168.68,8.56]
[1641360542096,2.19903471,168.76,168.68,8.82]
[1641360542297,2.19903471,168.76,168.68,9.32]
[1641360542797,2.19903471,168.76,168.66,23.783]
[1641360543000,2.69903471,168.76,168.66,23.783]
[1641360543697,1.3128,168.75,168.66,23.783]
[1641360543898,1.8128,168.75,168.66,23.783]
[1641360544297,25.4638,168.75,168.66,24.043]
[1641360544897,25.4638,168.75,168.66,25.2979]
[1641360545498,25.4638,168.75,168.66,25.7979]
[1641360546700,25.4638,168.75,168.66,25.2979]
[1641360546900,25.4638,168.75,168.66,24.043]
[1641360548204,25.4638,168.75,168.66,24.543]
[1641360549502,25.4638,168.75,168.66,25.8523]
[1641360559809,25.4638,168.75,168.66,25.3523]
[1641360560011,25.4638,168.75,168.66,25.8523]
[1641360573045,25.4638,168.75,168.66,25.3523]
[1641360573247,25.4638,168.75,168.66,1.3093]
[1641360573547,25.4638,168.75,168.62,8.56]
[1641360573548,25.4638,168.75,168.62,24.8115]
[1641360573749,82.9591,168.74,168.62,24.8115]
[1641360573947,83.4591,168.74,168.6,24.2661]
[1641360574150,24.2804,168.73,168.6,24.2661]
[1641360574449,24.7804,168.73,168.59,1.3253]
[1641360574651,25.0404,168.73,168.59,25.059]
[1641360574849,25.0404,168.73,168.59,25.559]
[1641360575349,1.55387193,168.71,168.59,25.559]
[1641360575551,2.33929577,168.7,168.59,25.559]
[1641360575750,26.12679577,168.7,168.59,25.559]
[1641360575951,26.62679577,168.7,168.59,25.819]
[1641360576351,1.2546,168.69,168.59,25.819]
[1641360576952,26.62679577,168.7,168.59,25.819]
[1641360577151,26.12679577,168.7,168.59,25.819]
[1641360577352,26.62679577,168.7,168.59,25.819]
[1641360577551,26.62679577,168.7,168.6,8.56]
[1641360577753,26.12679577,168.7,168.6,8.56]
[1641360577951,26.12679577,168.7,168.6,9.32]
[1641360578754,26.12679577,168.7,168.61,1.3648]
[1641360578959,26.12679577,168.7,168.61,1.8648]
[1641360579154,26.12679577,168.7,168.61,2.1248]
[1641360579357,2.33929577,168.7,168.61,26.6657]
[1641360581159,2.33929577,168.7,168.61,26.4057]
[1641360582360,2.33929577,168.7,168.61,26.6657]
[1641360582560,27.04129577,168.7,168.61,26.6657]
[1641360582759,27.54129577,168.7,168.61,26.6657]
[1641360583860,28.89689577,168.7,168.61,26.6657]
[1641360585061,28.39689577,168.7,168.61,26.6657]
[1641360585262,24.702,168.7,168.62,8.56]
[1641360585463,24.702,168.7,168.62,9.32]
[1641360585664,75.7591,168.74,168.62,9.32]
[1641360585862,75.7591,168.74,168.63,23.7583]
[1641360586063,75.7591,168.74,168.63,30.9623]
[1641360586264,27.68150569,168.73,168.63,31.4623]
[1641360586467,54.37819417,168.73,168.64,1.276]
[1641360586868,54.37819417,168.73,168.64,2.036]
[1641360587072,55.69079417,168.73,168.64,2.036]
[1641360592195,55.69079417,168.73,168.64,1.536]
[1641360592393,55.69079417,168.73,168.64,2.036]
[1641360594598,55.69079417,168.73,168.64,1.776]
[1641360596098,55.69079417,168.73,168.64,2.036]
[1641360596299,55.69079417,168.73,168.64,1.536]
[1641360596500,55.69079417,168.73,168.64,2.036]
[1641360596700,55.69079417,168.73,168.64,1.536]
[1641360597901,55.69079417,168.73,168.64,2.036]
[1641360598103,55.69079417,168.73,168.64,1.536]
[1641360600107,30.20989417,168.73,168.64,1.536]
[1641360600310,2.52838848,168.73,168.64,2.036]
[1641360600907,26.00598848,168.73,168.64,2.036]
[1641360610549,26.00598848,168.73,168.64,1.776]
[1641360611850,1.3316,168.72,168.64,1.776]
[1641360612051,1.3316,168.72,168.64,2.036]
[1641360613053,1.3316,168.72,168.64,0.76]
[1641360613454,1.3316,168.72,168.63,24.5183]
[1641360613754,1.3316,168.72,168.63,33.0783]